bitfinex/quotes_SOLUSD_20241210
["timestamp","ask_amount","ask_price","bid_price","bid_amount"]
[1733798491973,20.0,215.36,215.24,23.06471475]
[1733798492162,20.0,215.36,215.23,23.06471475]
[1733798492368,20.0,215.36,215.24,23.06471475]
[1733798492576,20.0,215.36,215.23,23.06471475]
[1733798492881,20.0,215.31,215.18,23.06471475]
[1733798493058,1.5846,215.3,215.18,23.06471475]
[1733798493384,1.5846,215.3,215.16,23.06471475]
[1733798493587,23.902374,215.29,215.17,23.06471475]
[1733798493783,20.0,215.26,215.14,23.06471475]
[1733798494093,20.0,215.26,215.13,23.06471475]
[1733798494269,6.0072,215.25,215.17,23.06471475]
[1733798494473,6.0072,215.25,215.14,23.06471475]
[1733798494874,6.0072,215.25,215.15,335.06471475]
[1733798495472,20.0,215.22,215.15,312.0]
[1733798496283,6.0072,215.25,215.17,23.06471475]
[1733798496484,6.0072,215.25,215.15,23.06471475]
[1733798496692,6.0072,215.25,215.16,23.06471475]
[1733798496995,6.0072,215.25,215.17,23.06471475]
[1733798497165,6.0072,215.25,215.07,21.6236]
[1733798497166,7.5918,215.3,215.2,23.06471475]
[1733798497485,7.5918,215.3,215.18,23.06471475]
[1733798497694,7.5918,215.3,215.19,23.06471475]
[1733798498591,7.5918,215.3,215.24,23.06471475]
[1733798498765,7.5918,215.42,215.24,23.06471475]
[1733798499285,7.5918,215.42,215.28,312.0]
[1733798500176,20.0,215.39,215.28,312.0]
[1733798500881,0.12549,215.38,215.28,312.0]
[1733798502375,0.12549,215.34,215.17,23.06471475]
[1733798502770,20.0,215.3,215.17,23.06471475]
[1733798503170,20.0,215.3,215.18,23.06471475]
[1733798504264,20.0,215.3,215.12,10.0]
[1733798504493,6.1928,215.33,215.24,23.06471475]
[1733798504874,6.1928,215.33,215.25,23.06471475]
[1733798505198,6.1928,215.41,215.23,23.06471475]
[1733798505498,6.1928,215.41,215.27,312.0]
[1733798506283,0.12549,215.37,215.27,312.0]
[1733798506998,20.0,215.38,215.24,23.06471475]
[1733798507205,6.1928,215.41,215.31,23.06471475]
[1733798507406,6.1928,215.41,215.33,23.06471475]
[1733798507573,1.5846,215.42,215.28,20.0]
[1733798507574,1.5846,215.42,215.35,23.06471475]
[1733798509777,0.5606986,215.43,215.37,23.06471475]
[1733798509977,0.5606986,215.43,215.38,335.06471475]
[1733798510195,0.5606986,215.43,215.4,23.06471475]
[1733798510401,0.5606986,215.43,215.42,46.84159875]
[1733798510911,0.5606986,215.43,215.42,46.96708875]
[1733798512717,0.5606986,215.43,215.42,56.96708875]
[1733798513591,0.5606986,215.43,215.42,368.96708875]
[1733798515518,0.5606986,215.43,215.42,358.96708875]
[1733798516191,10.0,215.7,215.42,358.96708875]
[1733798516192,6.1928,215.75,215.54,20.0]
[1733798516399,6.1928,215.75,215.6,23.06471475]
[1733798516905,6.1928,215.75,215.59,23.06471475]
[1733798517301,6.1928,215.75,215.61,46.84159875]
[1733798517512,6.1928,215.75,215.63,23.06471475]
[1733798518306,6.1928,215.75,215.61,46.84159875]
[1733798518535,6.1928,215.75,215.59,23.06471475]
[1733798518721,6.1928,215.75,215.57,23.06471475]
[1733798519013,20.0,215.71,215.56,23.06471475]
[1733798519218,20.0,215.71,215.56,335.06471475]
[1733798519426,20.0,215.71,215.56,312.0]
[1733798519617,20.0,215.71,215.55,23.06471475]
[1733798519618,20.0,215.71,215.54,23.06471475]
[1733798519938,0.12549,215.64,215.51,23.06471475]
[1733798520235,1.5312,215.62,215.51,23.06471475]
[1733798520411,1.5312,215.62,215.53,23.06471475]
[1733798520607,1.5312,215.62,215.52,23.06471475]
[1733798521028,0.12549,215.61,215.51,23.06471475]
[1733798521239,20.0,215.6,215.48,23.06471475]
[1733798521536,0.12549,215.59,215.48,23.06471475]
[1733798521840,20.0,215.58,215.45,23.06471475]
[1733798522023,0.12549,215.57,215.44,23.06471475]
[1733798522848,0.12549,215.57,215.44,335.06471475]
[1733798523045,0.12549,215.57,215.45,23.06471475]
[1733798524820,0.12549,215.55,215.42,23.06471475]
[1733798525019,0.12549,215.55,215.45,23.06471475]
[1733798525837,0.12549,215.55,215.44,23.06471475]
[1733798526210,0.12549,215.55,215.44,335.06471475]
[1733798526438,0.12549,215.55,215.43,23.06471475]
[1733798526828,1.5312,215.54,215.41,23.06471475]
[1733798527031,0.12549,215.53,215.42,23.06471475]
[1733798527212,20.12549,215.53,215.43,23.06471475]
[1733798527622,20.12549,215.53,215.42,23.06471475]
[1733798527841,0.12549,215.53,215.46,23.06471475]
[1733798528138,1.5312,215.54,215.47,23.06471475]
[1733798528930,1.5312,215.54,215.49,23.06471475]
[1733798529330,1.5312,215.54,215.5,23.06471475]
[1733798529531,1.5312,215.54,215.5,335.06471475]
[1733798529734,6.1928,215.56,215.51,23.06471475]
[1733798530038,6.1928,215.56,215.5,335.06471475]
[1733798530616,6.1928,215.56,215.5,312.0]
[1733798531029,6.1928,215.56,215.52,23.06471475]
[1733798531226,6.1928,215.56,215.51,23.06471475]
[1733798531440,6.1928,215.56,215.5,23.06471475]
[1733798531746,6.1928,215.56,215.49,23.06471475]
[1733798531949,6.1928,215.56,215.48,23.06471475]
[1733798533823,20.0,215.53,215.43,23.06471475]
[1733798534025,20.0,215.53,215.43,335.06471475]
[1733798534223,20.0,215.53,215.43,23.06471475]
[1733798534643,20.0,215.53,215.45,23.06471475]
[1733798534943,6.1928,215.56,215.5,23.06471475]
[1733798535124,6.1928,215.56,215.51,23.06471475]
[1733798535324,6.1928,215.56,215.49,23.06471475]
[1733798535825,6.1928,215.56,215.44,20.0]
[1733798536028,6.1928,215.56,215.44,43.06471475]
[1733798536551,6.1928,215.56,215.44,23.06471475]
[1733798536722,6.1928,215.56,215.41,23.902374]
[1733798536723,6.1928,215.56,215.45,23.06471475]
[1733798537347,6.1928,215.56,215.45,335.06471475]
[1733798538251,6.1928,215.56,215.46,23.06471475]
[1733798538623,6.1928,215.56,215.45,312.0]
[1733798538825,0.12549,215.55,215.42,23.06471475]
[1733798539245,20.0,215.53,215.42,23.06471475]
[1733798539434,20.0,215.53,215.43,23.06471475]
[1733798540018,6.1928,215.56,215.48,23.06471475]
[1733798540525,6.1928,215.56,215.44,23.06471475]
[1733798540749,6.1928,215.56,215.45,23.06471475]
[1733798541123,6.1928,215.56,215.47,23.06471475]
[1733798541747,6.1928,215.56,215.47,335.06471475]
[1733798542251,6.1928,215.56,215.47,312.0]
[1733798543256,6.1928,215.56,215.45,23.06471475]
[1733798543432,0.12549,215.55,215.43,23.06471475]
[1733798543643,0.12549,215.55,215.42,43.06471475]
[1733798544003,0.12549,215.55,215.43,23.06471475]
[1733798545225,0.12549,215.55,215.44,23.06471475]
[1733798546121,0.12549,215.55,215.44,335.06471475]
[1733798546319,0.12549,215.55,215.44,312.0]
[1733798546948,6.1928,215.56,215.45,23.06471475]
[1733798547246,6.1928,215.56,215.44,312.0]
[1733798547247,6.1928,215.56,215.46,23.06471475]
[1733798547457,6.1928,215.56,215.48,23.06471475]
[1733798547632,6.1928,215.56,215.42,20.0]
[1733798547633,6.1928,215.56,215.47,23.06471475]
[1733798547843,6.1928,215.56,215.45,23.06471475]
[1733798549156,6.1928,215.56,215.46,23.06471475]
[1733798549328,6.1928,215.56,215.47,23.06471475]
[1733798550545,6.1928,215.56,215.47,335.06471475]
[1733798550922,6.1928,215.56,215.47,312.0]
[1733798551957,0.12549,215.55,215.44,23.06471475]
[1733798552147,0.12549,215.55,215.42,23.06471475]
[1733798552760,0.12549,215.55,215.44,23.06471475]
[1733798552968,6.1928,215.56,215.46,23.06471475]
[1733798553329,6.1928,215.56,215.45,23.06471475]
[1733798553533,6.1928,215.56,215.46,23.06471475]
[1733798554245,6.1928,215.56,215.44,23.06471475]
[1733798554458,0.12549,215.55,215.43,23.06471475]
[1733798554934,0.12549,215.55,215.43,335.06471475]
[1733798555131,0.12549,215.55,215.43,326.2236733]
[1733798555873,0.12549,215.5,215.35,14.2236733]
[1733798556061,0.12549,215.5,215.33,14.2236733]
[1733798556062,1.566,215.45,215.33,14.2236733]
[1733798556272,1.566,215.45,215.32,14.2236733]
[1733798557238,1.566,215.45,215.32,22.78289047]
[1733798557435,1.566,215.45,215.34,22.78289047]
[1733798557655,1.566,215.45,215.28,23.902374]
[1733798557656,1.566,215.45,215.36,22.78289047]
[1733798557849,1.566,215.45,215.34,22.78289047]
[1733798558737,1.566,215.45,215.34,334.78289047]
[1733798559069,1.566,215.45,215.34,312.0]
[1733798561195,1.566,215.45,215.37,22.78289047]
[1733798562052,1.566,215.45,215.36,22.78289047]
[1733798562274,1.566,215.45,215.35,22.78289047]
[1733798562674,1.566,215.45,215.33,22.78289047]
[1733798562874,1.566,215.45,215.25,18.77928935]
[1733798562875,1.566,215.45,215.3,22.78289047]
[1733798563386,1.566,215.45,215.31,22.78289047]
[1733798563987,1.566,215.45,215.33,312.0]
[1733798565287,1.566,215.45,215.35,22.78289047]
[1733798566154,1.566,215.45,215.36,22.78289047]
[1733798566361,1.566,215.45,215.35,22.78289047]
[1733798566594,1.566,215.45,215.34,22.78289047]
[1733798566785,1.566,215.45,215.32,22.78289047]
[1733798568282,1.566,215.45,215.33,312.0]
[1733798569604,1.566,215.45,215.32,22.78289047]
[1733798570901,0.12549,215.44,215.31,22.78289047]
[1733798571100,0.12549,215.44,215.3,22.78289047]
[1733798571615,20.0,215.4,215.2,11.6167]
[1733798571775,1.615,215.38,215.26,18.591899]
[1733798571983,0.12549,215.37,215.26,18.591899]
[1733798572189,0.12549,215.37,215.24,22.78289047]
[1733798572707,0.12549,215.37,215.27,312.0]
[1733798573604,0.12549,215.37,215.22,22.78289047]
[1733798573605,20.0,215.33,215.22,22.78289047]
[1733798573914,20.0,215.33,215.19,22.78289047]
[1733798574131,0.12549,215.32,215.18,22.78289047]
[1733798574441,20.0,215.33,215.21,22.78289047]
[1733798576433,20.0,215.33,215.21,334.78289047]
[1733798576929,20.0,215.33,215.21,312.0]
[1733798577826,6.1196,215.36,215.24,22.78289047]
[1733798578024,6.1196,215.36,215.27,22.78289047]
[1733798578416,6.1196,215.36,215.26,22.78289047]
[1733798578616,6.1196,215.36,215.27,22.78289047]
[1733798579357,6.1196,215.36,215.27,14.24547022]
[1733798580435,6.1196,215.36,215.2,20.0]
[1733798580636,6.1196,215.36,215.3,14.24547022]
[1733798580921,1.615,215.38,215.33,14.24547022]
[1733798583156,6.1196,215.41,215.33,14.24547022]
[1733798583375,1.615,215.43,215.39,14.24547022]
[1733798583650,6.1196,215.46,215.39,14.24547022]
[1733798583855,6.1196,215.46,215.3,10.0]
[1733798583856,6.1196,215.46,215.4,14.24547022]
[1733798584025,6.1196,215.46,215.29,11.6122]
[1733798584026,6.1196,215.46,215.42,14.24547022]
[1733798584232,6.1196,215.46,215.35,10.0]
[1733798584233,6.1196,215.51,215.44,14.24547022]
[1733798584636,6.1196,215.51,215.44,312.0]
[1733798584956,6.1196,215.51,215.4,14.24547022]
[1733798585141,6.1196,215.51,215.4,22.76554794]
[1733798585358,6.1196,215.51,215.42,22.76554794]
[1733798585662,6.1196,215.51,215.43,22.76554794]
[1733798586043,6.1196,215.51,215.45,22.76554794]
[1733798586370,6.1196,215.51,215.46,22.76554794]
[1733798586582,1.615,215.54,215.48,22.76554794]
[1733798587228,1.615,215.54,215.49,22.76554794]
[1733798587467,6.1196,215.57,215.52,22.76554794]
[1733798587634,6.1196,215.57,215.5,22.76554794]
[1733798587951,6.1196,215.57,215.52,312.0]
[1733798588333,6.1196,215.57,215.52,334.76554794]
[1733798588535,1.615,215.59,215.53,22.76554794]
[1733798588840,1.615,215.59,215.54,22.76554794]
[1733798589238,2.1756986,215.65,215.57,22.76554794]
[1733798589442,2.1756986,215.65,215.58,22.76554794]
[1733798589638,2.1756986,215.65,215.6,22.76554794]
[1733798589831,0.5606986,215.65,215.61,22.76554794]
[1733798590633,0.5606986,215.65,215.62,22.76554794]
[1733798591251,0.5606986,215.65,215.61,22.76554794]
[1733798591440,0.5606986,215.65,215.58,22.76554794]
[1733798591761,0.5606986,215.65,215.62,312.0]
[1733798593253,0.5606986,215.65,215.6,22.76554794]
[1733798593879,0.5606986,215.65,215.61,22.76554794]
[1733798594382,0.5606986,215.65,215.64,22.76554794]
[1733798595570,0.5606986,215.65,215.62,22.76554794]
[1733798595977,0.5606986,215.65,215.59,22.76554794]
[1733798596164,0.5606986,215.65,215.61,22.76554794]
[1733798596367,0.5606986,215.65,215.62,22.76554794]
[1733798598103,0.5606986,215.65,215.64,22.76554794]
[1733798598761,0.5606986,215.65,215.64,46.54243194]
[1733798598964,1.6506,215.76,215.67,20.0]
[1733798599158,1.6506,215.76,215.71,22.76554794]
[1733798599383,1.6506,215.76,215.7,22.76554794]
[1733798599569,1.6506,215.76,215.71,22.76554794]
[1733798599957,1.6506,215.76,215.68,22.76554794]
[1733798600401,1.6506,215.76,215.64,22.76554794]
[1733798600578,0.12549,215.75,215.65,22.76554794]
[1733798601166,1.6506,215.76,215.67,22.76554794]
[1733798601792,1.6506,215.76,215.68,22.76554794]
[1733798602086,1.6506,215.76,215.7,22.76554794]
[1733798603792,6.0061,215.8,215.7,22.76554794]
[1733798604868,6.0061,215.8,215.72,312.0]
[1733798606786,6.0061,215.8,215.7,22.76554794]
[1733798607287,6.0061,215.8,215.66,22.76554794]
[1733798607288,0.12549,215.79,215.66,22.76554794]
[1733798607507,0.12549,215.76,215.64,22.76554794]
[1733798607990,1.5835,215.75,215.61,22.76554794]
[1733798608167,0.12549,215.74,215.61,22.76554794]
[1733798608593,0.12549,215.69,215.56,22.76554794]
[1733798608775,0.12549,215.69,215.53,22.76554794]
[1733798608776,1.5835,215.67,215.53,22.76554794]
[1733798608969,1.5835,215.67,215.45,1.5511]
[1733798608970,0.12549,215.66,215.52,22.76554794]
[1733798609294,0.12549,215.61,215.49,22.76554794]
[1733798609508,0.12549,215.61,215.48,22.76554794]
[1733798609994,0.12549,215.61,215.48,334.76554794]
[1733798610799,0.12549,215.61,215.48,312.0]
[1733798611178,20.12549,215.61,215.44,22.76554794]
[1733798611379,30.12549,215.61,215.43,22.76554794]
[1733798611586,0.12549,215.56,215.41,22.76554794]
[1733798611785,0.12549,215.51,215.39,22.76554794]
[1733798612099,0.12549,215.51,215.29,10.0]
[1733798612100,0.12549,215.51,215.36,22.76554794]
[1733798612396,0.12549,215.49,215.34,22.76554794]
[1733798612903,0.12549,215.47,215.33,22.76554794]
[1733798613292,0.12549,215.41,215.29,22.76554794]
[1733798613496,0.12549,215.41,215.22,18.589503]
[1733798613497,0.12549,215.41,215.28,22.76554794]
[1733798614002,6.3853,215.45,215.36,22.76554794]
[1733798614171,20.0,215.42,215.36,312.0]
[1733798614370,6.3853,215.45,215.36,334.76554794]
[1733798614575,6.3853,215.45,215.37,22.76554794]
[1733798614800,6.3853,215.45,215.38,22.76554794]
[1733798615172,6.3853,215.45,215.28,10.0]
[1733798615173,6.3853,215.45,215.37,22.76554794]
[1733798615972,6.3853,215.45,215.39,22.76554794]
[1733798616378,6.3853,215.45,215.38,22.76554794]
[1733798616776,6.3853,215.45,215.39,22.76554794]
[1733798616997,6.3853,215.45,215.36,22.76554794]
[1733798617294,6.3853,215.45,215.35,22.76554794]
[1733798617795,6.3853,215.45,215.39,22.76554794]
[1733798618380,6.3853,215.52,215.42,22.76554794]
[1733798618781,6.3853,215.52,215.39,22.76554794]
[1733798618978,6.3853,215.52,215.37,22.76554794]
[1733798619306,6.3853,215.52,215.38,22.76554794]
[1733798619510,6.3853,215.52,215.41,22.76554794]
[1733798619806,20.0,215.49,215.4,22.76554794]
[1733798619975,20.0,215.49,215.38,22.76554794]
[1733798621209,20.0,215.49,215.38,334.76554794]
[1733798622184,20.0,215.49,215.38,22.76554794]
[1733798622381,20.0,215.49,215.4,22.76554794]
[1733798622795,20.0,215.49,215.38,22.76554794]
[1733798623281,20.0,215.49,215.39,22.76554794]
[1733798625087,20.0,215.49,215.4,22.76554794]
[1733798625278,20.0,215.49,215.44,312.0]
[1733798625490,20.0,215.49,215.39,22.76554794]
[1733798625807,20.0,215.49,215.35,22.76554794]
[1733798625989,20.0,215.49,215.38,22.76554794]
[1733798626305,6.3853,215.52,215.42,22.76554794]
[1733798626508,6.3853,215.52,215.35,0.12549]
[1733798626509,6.3853,215.52,215.45,22.76554794]
[1733798626685,1.6326,215.56,215.48,22.76554794]
[1733798627117,1.6326,215.56,215.46,22.76554794]
[1733798627409,1.6326,215.56,215.47,22.76554794]
[1733798627910,1.6326,215.56,215.46,22.76554794]
[1733798628478,20.0,215.54,215.46,312.0]
[1733798629681,20.0,215.54,215.43,22.76554794]
[1733798630008,1.6326,215.56,215.48,22.76554794]
[1733798630511,1.6326,215.56,215.51,22.76554794]
[1733798630891,6.4429,215.57,215.52,22.76554794]
[1733798631094,6.4429,215.57,215.51,22.76554794]
[1733798631291,6.4429,215.57,215.48,22.76554794]
[1733798631612,6.4429,215.57,215.47,22.76554794]
[1733798631810,6.4429,215.57,215.48,22.76554794]
[1733798632485,6.4429,215.57,215.51,22.76554794]
[1733798632792,6.4429,215.57,215.52,312.0]
[1733798636190,1.6326,215.62,215.54,22.76554794]
[1733798636191,8.0755,215.62,215.54,22.76554794]
[1733798636397,8.0755,215.67,215.57,22.76554794]
[1733798636690,8.0755,215.67,215.58,22.76554794]
[1733798636899,8.0755,215.67,215.57,22.76554794]
[1733798639314,8.0755,215.67,215.6,22.76554794]
[1733798640406,8.0755,215.67,215.61,22.76554794]
[1733798640722,8.0755,215.67,215.62,22.76554794]
[1733798641017,8.0755,215.67,215.6,22.76554794]
[1733798641227,8.0755,215.67,215.59,22.76554794]
[1733798641534,8.0755,215.67,215.58,22.76554794]
[1733798643310,8.0755,215.67,215.58,334.76554794]
[1733798643515,8.0755,215.67,215.59,22.76554794]
[1733798643712,8.0755,215.67,215.54,23.776884]
[1733798643713,8.0755,215.67,215.57,22.76554794]
[1733798644124,20.0,215.64,215.53,22.76554794]
[1733798644600,20.0,215.64,215.54,22.76554794]
[1733798646129,8.0755,215.67,215.48,1.82408779]
[1733798646130,8.0755,215.67,215.58,22.76554794]
[1733798646303,8.0755,215.67,215.6,22.76554794]
[1733798646507,8.0755,215.67,215.61,22.76554794]
[1733798646722,8.0755,215.67,215.61,334.76554794]
[1733798647236,8.0755,215.67,215.61,312.0]
[1733798647395,8.0755,215.67,215.58,22.76554794]
[1733798648429,8.0755,215.67,215.57,22.76554794]
[1733798649226,8.0755,215.67,215.58,22.76554794]
[1733798650123,8.0755,215.67,215.57,22.76554794]
[1733798650419,0.12549,215.66,215.54,22.76554794]
[1733798651000,20.0,215.64,215.54,22.76554794]
[1733798651216,20.0,215.64,215.52,20.0]
[1733798651217,20.0,215.64,215.55,14.2097645]
[1733798651992,20.0,215.64,215.54,14.2097645]
[1733798653008,20.0,215.64,215.56,14.2097645]
[1733798653209,8.0755,215.67,215.56,14.2097645]
[1733798653414,8.0755,215.67,215.56,326.2097645]
[1733798654033,8.0755,215.67,215.56,312.0]
[1733798654332,8.0755,215.67,215.53,34.2097645]
[1733798654828,0.12549,215.66,215.53,34.2097645]
[1733798655025,20.0,215.64,215.53,14.2097645]
[1733798655636,0.12549,215.66,215.55,14.2097645]
[1733798655816,0.12549,215.66,215.54,14.2097645]
[1733798656138,0.12549,215.66,215.55,14.2097645]
[1733798656928,8.0755,215.67,215.56,14.2097645]
[1733798657103,8.0755,215.67,215.56,326.2097645]
[1733798657508,8.0755,215.67,215.6,14.2097645]
[1733798657703,8.0755,215.67,215.61,14.2097645]
[1733798658133,7.8282,215.73,215.63,14.2097645]
[1733798658310,7.8282,215.73,215.59,20.0]
[1733798658515,7.8282,215.73,215.6,14.2097645]
[1733798658719,7.8282,215.73,215.61,14.2097645]
[1733798658919,7.8282,215.73,215.59,20.0]
[1733798659107,7.8282,215.73,215.59,14.2097645]
[1733798659306,7.8282,215.73,215.6,14.2097645]
[1733798659635,20.0,215.7,215.6,14.2097645]
[1733798660709,20.0,215.7,215.6,326.2097645]
[1733798661203,20.0,215.7,215.61,14.2097645]
[1733798661924,7.8282,215.73,215.62,14.2097645]
[1733798662231,7.8282,215.73,215.64,14.2097645]
[1733798662744,7.8282,215.73,215.66,14.2097645]
[1733798662905,7.8282,215.73,215.6,14.2097645]
[1733798662906,7.8282,215.73,215.7,14.2097645]
[1733798663108,7.8282,215.78,215.7,14.2097645]
[1733798663628,7.8282,215.78,215.69,14.2097645]
[1733798663801,7.8282,215.78,215.7,14.2097645]
[1733798664427,7.8282,215.78,215.7,326.2097645]
[1733798665238,7.8282,215.78,215.7,312.0]
[1733798667253,7.8282,215.78,215.7,326.2097645]
[1733798667416,7.8282,215.78,215.71,14.2097645]
[1733798667615,7.8282,215.78,215.7,312.0]
[1733798670662,7.8282,215.78,215.69,14.2097645]
[1733798671727,7.8282,215.78,215.62,11.5942]
[1733798671728,7.8282,215.78,215.7,14.2097645]
[1733798671935,7.8282,215.78,215.71,14.2097645]
[1733798672131,7.7117,215.84,215.74,14.2097645]
[1733798672532,7.7117,215.84,215.75,14.2097645]
[1733798673334,7.7117,215.84,215.74,14.2097645]
[1733798673756,7.7117,215.84,215.75,312.0]
[1733798673966,0.12549,215.83,215.7,14.2097645]
[1733798674469,0.12549,215.83,215.71,14.2097645]
[1733798674766,7.7117,215.84,215.73,14.2097645]
[1733798674939,7.7117,215.84,215.76,14.2097645]
[1733798675138,7.7117,215.84,215.66,10.0]
[1733798675139,7.7117,215.84,215.77,14.2097645]
[1733798675346,7.2117,215.84,215.77,14.2097645]
[1733798676841,7.2117,215.84,215.77,326.2097645]
[1733798679041,7.2117,215.84,215.77,312.0]
[1733798679242,0.5606986,215.86,215.8,14.2097645]
[1733798679470,0.5606986,215.86,215.81,14.2097645]
[1733798680041,0.5606986,215.86,215.85,14.2097645]
[1733798680245,0.5606986,215.86,215.82,14.2097645]
[1733798681386,0.5606986,215.86,215.83,14.2097645]
[1733798681559,0.5606986,215.86,215.84,14.2097645]
[1733798682065,0.5606986,215.86,215.79,14.2097645]
[1733798682459,0.5606986,215.86,215.8,14.2097645]
[1733798683360,0.5606986,215.86,215.78,14.2097645]
[1733798683978,0.5606986,215.86,215.77,14.2097645]
[1733798684162,1.6648,215.84,215.76,14.2097645]
[1733798686377,1.6648,215.84,215.76,326.2097645]
[1733798688986,23.902374,215.83,215.62,23.1941]
[1733798689176,23.902374,215.83,215.68,14.2097645]
[1733798690186,23.902374,215.83,215.7,14.2097645]
[1733798690367,20.0,215.82,215.73,14.2097645]
[1733798690573,1.6648,215.84,215.74,14.2097645]
[1733798690773,1.6648,215.84,215.75,14.2097645]
[1733798691166,1.6648,215.84,215.74,14.2097645]
[1733798691478,1.6648,215.84,215.75,14.2097645]
[1733798691668,1.6648,215.84,215.76,14.2097645]
[1733798691868,1.6648,215.84,215.77,14.2097645]
[1733798692192,1.6648,215.84,215.78,312.0]
[1733798692393,6.125,215.85,215.79,14.2097645]
[1733798692683,6.125,215.85,215.8,14.2097645]
[1733798692856,6.125,215.85,215.81,14.2097645]
[1733798693061,0.5606986,215.86,215.81,14.2097645]
[1733798693290,0.5606986,215.86,215.71,30.7467645]
[1733798693291,0.5606986,215.86,215.82,14.2097645]
[1733798693674,0.5606986,215.86,215.83,14.2097645]
[1733798693882,0.5606986,215.86,215.82,14.2097645]
[1733798695164,0.5606986,215.86,215.81,14.2097645]
[1733798696294,0.5606986,215.86,215.81,326.2097645]
[1733798698062,0.5606986,215.86,215.83,14.2097645]
[1733798698587,0.5606986,215.86,215.84,14.2097645]
[1733798699468,0.5606986,215.86,215.77,10.0]
[1733798699469,0.5606986,215.86,215.85,14.2097645]
[1733798699671,0.5606986,215.86,215.85,37.9866485]
[1733798700293,0.5606986,215.86,215.85,38.1121385]
[1733798701182,0.5606986,215.86,215.85,350.1121385]
[1733798702093,6.125,216.02,215.89,20.0]
[1733798702280,6.125,216.02,215.95,14.2097645]
[1733798702489,6.125,216.02,215.96,14.2097645]
[1733798703172,6.125,216.02,215.92,14.2097645]
[1733798703372,0.12549,216.01,215.9,14.2097645]
[1733798703804,0.12549,216.01,215.88,14.2097645]
[1733798703999,0.12549,215.98,215.87,14.2097645]
[1733798704306,0.12549,215.98,215.82,14.2097645]
[1733798704307,0.12549,215.98,215.88,14.2097645]
[1733798704472,20.0,215.99,215.91,14.2097645]
[1733798704678,6.125,216.02,215.91,14.2097645]
[1733798704872,6.125,216.02,215.93,14.2097645]
[1733798705095,0.12549,216.01,215.9,14.2097645]
[1733798705692,0.12549,216.01,215.92,14.2097645]
[1733798705898,6.125,216.02,215.92,14.2097645]
[1733798706684,6.125,216.02,215.9,14.2097645]
[1733798707224,20.0,215.99,215.79,14.99141227]
[1733798707518,1.6648,215.97,215.85,14.2097645]
[1733798707690,0.12549,215.96,215.84,14.2097645]
[1733798708575,1.6648,215.97,215.88,14.2097645]
[1733798708779,1.6648,215.97,215.88,312.0]
[1733798709007,1.6648,215.97,215.88,326.2097645]
[1733798709376,1.6648,215.97,215.89,14.2097645]
[1733798709781,1.6648,215.97,215.87,14.2097645]
[1733798710714,1.6648,215.97,215.88,14.2097645]
[1733798711730,1.6648,215.97,215.89,14.2097645]
[1733798712321,6.125,216.02,215.84,0.12549]
[1733798712322,7.6588,216.02,215.9,37.9866485]
[1733798712618,7.6588,216.02,215.94,14.2097645]
[1733798712920,7.8996,216.07,215.98,14.2097645]
[1733798713145,7.8996,216.07,215.99,14.2097645]
[1733798713349,7.8996,216.07,216.0,14.2097645]
[1733798713728,7.8996,216.07,215.99,14.2097645]
[1733798714028,7.8996,216.07,215.98,14.2097645]
[1733798714248,7.8996,216.07,216.0,14.2097645]
[1733798714551,7.8996,216.07,215.94,23.776884]
[1733798714552,6.3658,216.07,216.02,14.2097645]
[1733798714715,0.5606986,216.08,216.04,14.2097645]
[1733798714918,0.5606986,216.08,216.05,14.2097645]
[1733798715342,0.5606986,216.08,216.07,14.2097645]
[1733798715927,0.5606986,216.08,216.07,312.0]
[1733798716631,0.5606986,216.08,216.02,20.0]
[1733798716943,0.5606986,216.08,216.04,14.2097645]
[1733798717448,0.5606986,216.08,216.06,14.2097645]
[1733798717638,0.5606986,216.08,216.05,14.2097645]
[1733798718224,0.5606986,216.08,216.03,14.2097645]
[1733798718424,0.5606986,216.08,216.04,14.2097645]
[1733798718836,0.5606986,216.08,216.06,23.776884]
[1733798719258,0.5606986,216.08,216.06,37.9866485]
[1733798719554,0.5606986,216.08,216.07,335.776884]
[1733798720122,0.5606986,216.08,216.07,349.9866485]